[Event "44th Chess Olympiad Women 2022"]
[Site "Chennai"]
[Date "2022.08.05"]
[Round "7.37"]
[White "Mahmoud, Roula"]
[Black "Jannatul, Ferdous"]
[Result "0-1"]
[WhiteElo "1765"]
[BlackElo "1815"]
[Annotator "NA RC"]
[PlyCount "96"]
[EventDate "2022.??.??"]
[TimeControl "60"]

1. e4 {[%emt 0:00:03]} c6 {[%emt 0:00:12]} 2. d4 {[%emt 0:00:19]} d5 {[%emt 0:
00:00]} 3. Nc3 {[%emt 0:00:07]} dxe4 {[%emt 0:00:03]} 4. Nxe4 {[%emt 0:00:08]}
Bf5 {[%emt 0:00:05]} 5. Ng3 {[%emt 0:00:07]} Bg6 {[%emt 0:00:06]} 6. Nh3 {
[%emt 0:00:05]} e6 {[%emt 0:02:06]} 7. Nf4 {[%emt 0:00:10]} Nf6 {[%emt 0:00:03]
} 8. h4 {[%emt 0:01:04]} Bd6 {[%emt 0:06:13]} 9. h5 {[%emt 0:00:51]} Be4 {
[%emt 0:01:06]} 10. Qe2 {[%emt 0:03:02]} Bxf4 {[%emt 0:02:00]} 11. Bxf4 {
[%emt 0:01:13]} Qxd4 {[%emt 0:03:45]} 12. Rd1 {[%emt 0:00:57]} Qxb2 {[%emt 0:
00:00]} 13. f3 {[%emt 0:16:46]} Bxc2 {[%emt 0:09:35]} 14. Qd2 {[%emt 0:05:56]}
Nd5 {[%emt 0:03:57]} 15. Bc4 {[%emt 0:43:11]} Qf6 {[%emt 0:07:28]} 16. Ne4 {
[%emt 0:05:49]} Bxe4 {[%emt 0:02:25]} 17. fxe4 {[%emt 0:00:27]} Qxf4 {[%emt 0:
00:00]} 18. Qxf4 {[%emt 0:05:10]} Nxf4 {[%emt 0:00:14]} 19. g3 {[%emt 0:00:02]}
Nxh5 {[%emt 0:01:01]} 20. Rxh5 {[%emt 0:00:07]} Nd7 {[%emt 0:01:05]} 21. a4 {
[%emt 0:01:26]} O-O-O {[%emt 0:01:23]} 22. Rc1 {[%emt 0:03:19]} h6 {[%emt 0:00:
00]} 23. a5 {[%emt 0:00:27]} Nf6 {[%emt 0:00:19]} 24. Rh2 {[%emt 0:02:03]} Nxe4
{[%emt 0:01:10]} 25. a6 {[%emt 0:00:50]} b6 {[%emt 0:00:21]} 26. g4 {[%emt 0:
00:00]} Rd4 {[%emt 0:06:32]} 27. Re2 {[%emt 0:01:53]} Nc5 {[%emt 0:08:11]} 28.
Rf2 {[%emt 0:01:27]} f6 {[%emt 0:01:10]} 29. Re2 {[%emt 0:01:54]} Re4 {[%emt 0:
00:00]} 30. Rxe4 {[%emt 0:01:16]} Nxe4 {[%emt 0:00:02]} 31. Bxe6+ {[%emt 0:00:
00]} Kc7 {[%emt 0:00:15]} 32. Bf5 {[%emt 0:00:18]} Re8 {[%emt 0:01:04]} 33. Bg6
{[%emt 0:00:28]} Re5 {[%emt 0:00:30]} 34. Ke2 {[%emt 0:01:03]} b5 {[%emt 0:00:
00]} 35. Kf3 {[%emt 0:01:19]} Nc5 {[%emt 0:01:59]} 36. Ra1 {[%emt 0:01:47]} Kb6
{[%emt 0:00:17]} 37. Rd1 {[%emt 0:00:35]} Kxa6 {[%emt 0:02:10]} 38. Rd8 {
[%emt 0:00:12]} Kb7 {[%emt 0:00:22]} 39. Rf8 {[%emt 0:01:08]} Re7 {[%emt 0:00:
00]} 40. Rd8 {[%emt 0:00:05]} b4 {[%emt 0:07:00]} 41. Rd1 {[%emt 0:30:45]} a5 {
[%emt 0:30:37]} 42. Rc1 {[%emt 0:00:52]} Kb6 {[%emt 0:03:48]} 43. Bf5 {[%emt 0:
00:00]} b3 {[%emt 0:01:06]} 44. Rb1 {[%emt 0:00:00]} a4 {[%emt 0:00:00]} 45.
Kg3 {[%emt 0:00:00]} a3 {[%emt 0:00:00]} 46. Kh4 {[%emt 0:00:00]} b2 {[%emt 0:
00:00]} 47. Bc2 {[%emt 0:00:00]} Ka7 {[%emt 0:00:00]} 48. Kh5 {[%emt 0:00:00]}
a2 {[%emt 0:00:00]} 0-1

[Event "44th Chess Olympiad Women 2022"]
[Site "Chennai"]
[Date "2022.08.05"]
[Round "7.37"]
[White "Noshin, Anjum"]
[Black "Ahmad Murad, Fatema Alzahraa."]
[Result "1-0"]
[WhiteElo "2027"]
[BlackElo "1791"]
[Annotator "NA RC"]
[PlyCount "135"]
[EventDate "2022.??.??"]
[TimeControl "60"]

1. e4 {[%emt 0:00:03]} e6 {[%emt 0:00:13]} 2. d4 {[%emt 0:00:04]} d5 {[%emt 0:
00:00]} 3. Nc3 {[%emt 0:00:07]} Bb4 {[%emt 0:00:09]} 4. e5 {[%emt 0:00:17]} c5
{[%emt 0:00:33]} 5. a3 {[%emt 0:00:07]} Bxc3+ {[%emt 0:00:46]} 6. bxc3 {
[%emt 0:00:07]} Qa5 {[%emt 0:00:39]} 7. Bd2 {[%emt 0:00:07]} Qa4 {[%emt 0:00:
00]} 8. Qg4 {[%emt 0:00:07]} Kf8 {[%emt 0:02:42]} 9. Qd1 {[%emt 0:00:07]} Nc6 {
[%emt 0:01:07]} 10. Nf3 {[%emt 0:00:56]} Nge7 {[%emt 0:02:15]} 11. Qb1 {
[%emt 0:04:17]} c4 {[%emt 0:06:59]} 12. Be2 {[%emt 0:03:05]} Nf5 {[%emt 0:00:
00]} 13. O-O {[%emt 0:00:57]} f6 {[%emt 0:08:31]} 14. Re1 {[%emt 0:07:22]} Kf7
{[%emt 0:10:53]} 15. Bf1 {[%emt 0:08:17]} Qa5 {[%emt 0:02:29]} 16. a4 {[%emt 0:
00:00]} Qc7 {[%emt 0:04:36]} 17. Qd1 {[%emt 0:07:44]} Rf8 {[%emt 0:07:58]} 18.
g3 {[%emt 0:08:05]} Kg8 {[%emt 0:11:34]} 19. exf6 {[%emt 0:06:02]} gxf6 {
[%emt 0:01:03]} 20. Bf4 {[%emt 0:01:34]} Qf7 {[%emt 0:02:11]} 21. Bh3 {[%emt 0:
00:00]} Ng7 {[%emt 0:02:14]} 22. Bg2 {[%emt 0:13:00]} Ne7 {[%emt 0:03:39]} 23.
Bd6 {[%emt 0:02:39]} Re8 {[%emt 0:00:40]} 24. Nh4 {[%emt 0:02:21]} Nef5 {
[%emt 0:02:03]} 25. Nxf5 {[%emt 0:00:07]} Nxf5 {[%emt 0:00:23]} 26. Qg4+ {
[%emt 0:02:35]} Kh8 {[%emt 0:01:49]} 27. Bf4 {[%emt 0:02:17]} Bd7 {[%emt 0:00:
00]} 28. Qf3 {[%emt 0:00:43]} Bc6 {[%emt 0:04:27]} 29. Bh3 {[%emt 0:00:06]} Qg6
{[%emt 0:00:51]} 30. Qg4 {[%emt 0:03:43]} Rad8 {[%emt 0:03:57]} 31. Qxg6 {
[%emt 0:00:11]} hxg6 {[%emt 0:00:10]} 32. a5 {[%emt 0:07:57]} Kg7 {[%emt 0:00:
00]} 33. Bg4 {[%emt 0:06:27]} Kf7 {[%emt 0:02:09]} 34. h4 {[%emt 0:00:26]} Nd6
{[%emt 0:00:47]} 35. Bxd6 {[%emt 0:01:40]} Rxd6 {[%emt 0:00:07]} 36. Re3 {
[%emt 0:01:15]} e5 {[%emt 0:01:11]} 37. Rae1 {[%emt 0:02:58]} exd4 {[%emt 0:00:
00]} 38. cxd4 {[%emt 0:00:51]} Rxe3 {[%emt 0:00:42]} 39. fxe3 {[%emt 0:00:05]}
f5 {[%emt 0:01:10]} 40. Bf3 {[%emt 0:00:16]} Kf6 {[%emt 0:01:22]} 41. Rb1 {
[%emt 0:03:36]} Ke6 {[%emt 0:01:31]} 42. Kf2 {[%emt 0:01:27]} a6 {[%emt 0:00:
00]} 43. c3 {[%emt 0:01:04]} Bb5 {[%emt 0:00:27]} 44. g4 {[%emt 0:05:38]} b6 {
[%emt 0:01:20]} 45. gxf5+ {[%emt 0:04:09]} gxf5 {[%emt 0:00:08]} 46. axb6 {
[%emt 0:00:07]} Rxb6 {[%emt 0:00:07]} 47. Kg3 {[%emt 0:01:03]} Rb7 {[%emt 0:00:
00]} 48. Kf4 {[%emt 0:02:40]} Bc6 {[%emt 0:01:14]} 49. Rxb7 {[%emt 0:06:01]}
Bxb7 {[%emt 0:00:04]} 50. h5 {[%emt 0:00:04]} a5 {[%emt 0:00:25]} 51. Bd1 {
[%emt 0:00:04]} Kf6 {[%emt 0:00:36]} 52. Ba4 {[%emt 0:03:35]} Bc8 {[%emt 0:00:
00]} 53. h6 {[%emt 0:00:16]} Kg6 {[%emt 0:00:39]} 54. Ke5 {[%emt 0:00:05]} Bb7
{[%emt 0:00:24]} 55. Bb5 {[%emt 0:01:02]} Kxh6 {[%emt 0:01:02]} 56. Kxf5 {
[%emt 0:00:04]} Kh5 {[%emt 0:00:14]} 57. Kf4 {[%emt 0:03:25]} Kg6 {[%emt 0:00:
00]} 58. e4 {[%emt 0:00:29]} dxe4 {[%emt 0:00:13]} 59. Bxc4 {[%emt 0:00:05]} a4
{[%emt 0:00:16]} 60. d5 {[%emt 0:00:17]} e3 {[%emt 0:00:55]} 61. Kxe3 {[%emt 0:
00:00]} Kf5 {[%emt 0:00:08]} 62. Kd4 {[%emt 0:00:10]} Kf6 {[%emt 0:02:06]} 63.
Ba2 {[%emt 0:00:43]} Ke7 {[%emt 0:00:48]} 64. Kc5 {[%emt 0:00:09]} Kd7 {
[%emt 0:00:26]} 65. c4 {[%emt 0:00:27]} Kc7 {[%emt 0:00:24]} 66. Kb4 {[%emt 0:
00:00]} Kd6 {[%emt 0:00:23]} 67. c5+ {[%emt 0:00:48]} Ke5 {[%emt 0:00:39]} 68.
Kxa4 {[%emt 0:00:08]} 1-0

[Event "44th Chess Olympiad Women 2022"]
[Site "Chennai"]
[Date "2022.08.05"]
[Round "7.37"]
[White "Talukder, Umme Taslima Protiv"]
[Black "Khalil, Manar"]
[Result "0-1"]
[WhiteElo "1769"]
[BlackElo "1831"]
[Annotator "NA RC"]
[PlyCount "112"]
[EventDate "2022.??.??"]
[TimeControl "60"]

1. d4 {[%emt 0:00:07]} d5 {[%emt 0:00:10]} 2. c4 {[%emt 0:00:07]} dxc4 {
[%emt 0:00:26]} 3. e3 {[%emt 0:00:34]} Nf6 {[%emt 0:00:18]} 4. Bxc4 {[%emt 0:
00:00]} e6 {[%emt 0:00:15]} 5. Nc3 {[%emt 0:00:32]} a6 {[%emt 0:00:30]} 6. Nf3
{[%emt 0:04:11]} b5 {[%emt 0:00:49]} 7. Be2 {[%emt 0:03:21]} Bb7 {[%emt 0:00:
00]} 8. O-O {[%emt 0:00:43]} Nbd7 {[%emt 0:01:11]} 9. a3 {[%emt 0:03:27]} c5 {
[%emt 0:02:03]} 10. dxc5 {[%emt 0:03:21]} Bxc5 {[%emt 0:02:01]} 11. b4 {
[%emt 0:02:52]} Be7 {[%emt 0:01:19]} 12. Bb2 {[%emt 0:01:22]} O-O {[%emt 0:00:
00]} 13. Nd4 {[%emt 0:04:14]} Ne5 {[%emt 0:03:40]} 14. Qb3 {[%emt 0:05:16]} Qb6
{[%emt 0:06:19]} 15. Rfd1 {[%emt 0:08:43]} Rac8 {[%emt 0:05:06]} 16. Rac1 {
[%emt 0:02:40]} Nc4 {[%emt 0:03:17]} 17. Bf3 {[%emt 0:03:59]} Bxf3 {[%emt 0:00:
00]} 18. Nxf3 {[%emt 0:01:25]} Rfd8 {[%emt 0:04:50]} 19. Rxd8+ {[%emt 0:07:07]}
Qxd8 {[%emt 0:04:55]} 20. Rd1 {[%emt 0:06:56]} Qb6 {[%emt 0:05:19]} 21. Ne2 {
[%emt 0:07:53]} Nxb2 {[%emt 0:04:44]} 22. Qxb2 {[%emt 0:00:31]} h6 {[%emt 0:00:
00]} 23. h3 {[%emt 0:02:06]} a5 {[%emt 0:03:06]} 24. bxa5 {[%emt 0:05:39]} Qxa5
{[%emt 0:00:14]} 25. Rd3 {[%emt 0:01:29]} Ne4 {[%emt 0:09:39]} 26. Rb3 {
[%emt 0:04:48]} Rc5 {[%emt 0:05:28]} 27. Qd4 {[%emt 0:04:54]} Ng5 {[%emt 0:00:
00]} 28. Ng3 {[%emt 0:08:25]} Rc1+ {[%emt 0:05:13]} 29. Nf1 {[%emt 0:00:46]}
Nxf3+ {[%emt 0:05:39]} 30. gxf3 {[%emt 0:00:03]} Bxa3 {[%emt 0:01:00]} 31. Qd7
{[%emt 0:01:12]} b4 {[%emt 0:00:36]} 32. Kg2 {[%emt 0:02:16]} Rc3 {[%emt 0:00:
00]} 33. Qe8+ {[%emt 0:01:08]} Kh7 {[%emt 0:00:23]} 34. Rb1 {[%emt 0:01:26]}
Qf5 {[%emt 0:00:59]} 35. Nd2 {[%emt 0:01:03]} Rc2 {[%emt 0:01:07]} 36. Ne4 {
[%emt 0:00:28]} Qg6+ {[%emt 0:00:42]} 37. Kf1 {[%emt 0:01:23]} f5 {[%emt 0:00:
00]} 38. Qxg6+ {[%emt 0:00:44]} Kxg6 {[%emt 0:00:01]} 39. Nd6 {[%emt 0:00:43]}
Rc1+ {[%emt 0:00:39]} 40. Rxc1 {[%emt 0:00:02]} Bxc1 {[%emt 0:00:08]} 41. Ke2 {
[%emt 0:30:40]} Bb2 {[%emt 0:30:46]} 42. Kd3 {[%emt 0:00:33]} Kh5 {[%emt 0:00:
00]} 43. e4 {[%emt 0:00:53]} Kh4 {[%emt 0:02:37]} 44. exf5 {[%emt 0:00:05]}
exf5 {[%emt 0:00:09]} 45. Nxf5+ {[%emt 0:00:16]} Kxh3 {[%emt 0:00:06]} 46. Ne3
{[%emt 0:00:29]} h5 {[%emt 0:00:41]} 47. Kc4 {[%emt 0:00:41]} Bc3 {[%emt 0:00:
00]} 48. Kd5 {[%emt 0:01:12]} h4 {[%emt 0:00:52]} 49. Ke4 {[%emt 0:00:05]} b3 {
[%emt 0:00:45]} 50. Nd1 {[%emt 0:00:18]} Bf6 {[%emt 0:00:14]} 51. Kd3 {[%emt 0:
00:00]} b2 {[%emt 0:00:21]} 52. Kc2 {[%emt 0:00:07]} Kg2 {[%emt 0:00:25]} 53.
f4 {[%emt 0:00:11]} h3 {[%emt 0:00:48]} 54. f5 {[%emt 0:00:36]} h2 {[%emt 0:00:
00]} 55. Ne3+ {[%emt 0:00:10]} Kf3 {[%emt 0:00:12]} 56. Nd5 {[%emt 0:01:15]}
h1=Q {[%emt 0:00:14]} 0-1

[Event "44th Chess Olympiad Women 2022"]
[Site "Chennai"]
[Date "2022.08.05"]
[Round "7.38"]
[White "Bacic, Kristina"]
[Black "Phiri Bertha"]
[Result "1/2-1/2"]
[WhiteElo "1866"]
[BlackElo "1606"]
[Annotator "NA RC"]
[PlyCount "78"]
[EventDate "2022.??.??"]
[TimeControl "60"]

1. d4 {[%emt 0:00:06]} d5 {[%emt 0:00:19]} 2. Nf3 {[%emt 0:00:11]} Nf6 {
[%emt 0:00:10]} 3. Bf4 {[%emt 0:00:18]} Bf5 {[%emt 0:00:22]} 4. e3 {[%emt 0:00:
00]} e6 {[%emt 0:00:11]} 5. Bd3 {[%emt 0:00:18]} Ne4 {[%emt 0:02:29]} 6. O-O {
[%emt 0:01:13]} Bd6 {[%emt 0:00:24]} 7. Bxd6 {[%emt 0:01:50]} Qxd6 {[%emt 0:00:
00]} 8. c4 {[%emt 0:02:48]} c6 {[%emt 0:01:44]} 9. Qc2 {[%emt 0:01:39]} Nd7 {
[%emt 0:01:47]} 10. Nc3 {[%emt 0:09:02]} Ndf6 {[%emt 0:02:03]} 11. Ne5 {
[%emt 0:03:11]} O-O {[%emt 0:01:22]} 12. Ne2 {[%emt 0:04:59]} Qe7 {[%emt 0:00:
00]} 13. c5 {[%emt 0:02:43]} Nd7 {[%emt 0:02:41]} 14. Nxd7 {[%emt 0:09:26]}
Qxd7 {[%emt 0:00:08]} 15. b4 {[%emt 0:03:01]} b6 {[%emt 0:03:46]} 16. a4 {
[%emt 0:03:34]} bxc5 {[%emt 0:00:56]} 17. dxc5 {[%emt 0:05:35]} a6 {[%emt 0:00:
00]} 18. Nd4 {[%emt 0:05:23]} Bg6 {[%emt 0:00:26]} 19. b5 {[%emt 0:06:08]} axb5
{[%emt 0:01:31]} 20. axb5 {[%emt 0:00:10]} cxb5 {[%emt 0:00:35]} 21. c6 {
[%emt 0:00:45]} Qe7 {[%emt 0:01:19]} 22. Nxb5 {[%emt 0:01:32]} Nd6 {[%emt 0:00:
00]} 23. Bxg6 {[%emt 0:01:47]} hxg6 {[%emt 0:00:03]} 24. Nxd6 {[%emt 0:02:03]}
Qxd6 {[%emt 0:00:07]} 25. c7 {[%emt 0:03:53]} Rac8 {[%emt 0:00:54]} 26. Ra7 {
[%emt 0:01:36]} Rfe8 {[%emt 0:06:57]} 27. Rb1 {[%emt 0:03:56]} Kh7 {[%emt 0:00:
00]} 28. g3 {[%emt 0:05:37]} Re7 {[%emt 0:03:46]} 29. Rbb7 {[%emt 0:00:47]} e5
{[%emt 0:00:48]} 30. h4 {[%emt 0:00:27]} d4 {[%emt 0:06:08]} 31. Qd3 {[%emt 0:
00:00]} Rcxc7 {[%emt 0:09:50]} 32. Rxc7 {[%emt 0:00:29]} Rxc7 {[%emt 0:00:22]}
33. Rxc7 {[%emt 0:00:31]} Qxc7 {[%emt 0:00:06]} 34. exd4 {[%emt 0:00:03]} exd4
{[%emt 0:00:31]} 35. Qxd4 {[%emt 0:00:05]} Qe7 {[%emt 0:02:16]} 36. Kg2 {
[%emt 0:03:41]} f6 {[%emt 0:04:18]} 37. Qd3 {[%emt 0:01:48]} Qe5 {[%emt 0:00:
00]} 38. f4 {[%emt 0:02:18]} Qh5 {[%emt 0:00:49]} 39. Kf2 {[%emt 0:02:44]} Qg4
{[%emt 0:01:06]} 1/2-1/2

[Event "44th Chess Olympiad Women 2022"]
[Site "Chennai"]
[Date "2022.08.05"]
[Round "7.38"]
[White "Bwalya Mulwale, Lubuuto"]
[Black "Koljevic, Nikolina"]
[Result "1/2-1/2"]
[WhiteElo "1751"]
[BlackElo "2014"]
[Annotator "NA RC"]
[PlyCount "178"]
[EventDate "2022.??.??"]
[TimeControl "60"]

1. d4 {[%emt 0:00:05]} Nf6 {[%emt 0:00:08]} 2. Nf3 {[%emt 0:00:08]} e6 {
[%emt 0:00:22]} 3. Bf4 {[%emt 0:01:37]} d5 {[%emt 0:01:34]} 4. e3 {[%emt 0:00:
00]} Bd6 {[%emt 0:00:09]} 5. Bg3 {[%emt 0:00:12]} O-O {[%emt 0:02:45]} 6. Bd3 {
[%emt 0:00:31]} b6 {[%emt 0:00:13]} 7. Nbd2 {[%emt 0:01:04]} Bb7 {[%emt 0:00:
00]} 8. c3 {[%emt 0:03:11]} c5 {[%emt 0:02:07]} 9. Qe2 {[%emt 0:06:25]} Ne4 {
[%emt 0:03:42]} 10. Bxd6 {[%emt 0:07:04]} Qxd6 {[%emt 0:00:36]} 11. h4 {
[%emt 0:08:14]} f5 {[%emt 0:03:18]} 12. Ng5 {[%emt 0:04:48]} Nd7 {[%emt 0:00:
00]} 13. Bxe4 {[%emt 0:03:19]} fxe4 {[%emt 0:05:51]} 14. O-O-O {[%emt 0:04:34]}
cxd4 {[%emt 0:13:36]} 15. exd4 {[%emt 0:02:37]} b5 {[%emt 0:15:17]} 16. f3 {
[%emt 0:06:56]} b4 {[%emt 0:02:31]} 17. cxb4 {[%emt 0:05:28]} Qxb4 {[%emt 0:00:
00]} 18. fxe4 {[%emt 0:04:01]} Qxd4 {[%emt 0:04:42]} 19. Nb3 {[%emt 0:05:32]}
Qf2 {[%emt 0:04:19]} 20. Qxf2 {[%emt 0:05:11]} Rxf2 {[%emt 0:00:02]} 21. Rd2 {
[%emt 0:00:13]} Rxd2 {[%emt 0:03:46]} 22. Nxd2 {[%emt 0:00:03]} Nc5 {[%emt 0:
00:00]} 23. Rh3 {[%emt 0:03:22]} h6 {[%emt 0:03:41]} 24. b4 {[%emt 0:04:07]}
Na6 {[%emt 0:05:33]} 25. Nxe6 {[%emt 0:03:44]} Re8 {[%emt 0:05:48]} 26. Nc5 {
[%emt 0:03:25]} Nxc5 {[%emt 0:00:25]} 27. bxc5 {[%emt 0:00:18]} dxe4 {[%emt 0:
00:00]} 28. Re3 {[%emt 0:00:04]} Re5 {[%emt 0:01:09]} 29. Nb3 {[%emt 0:01:18]}
a5 {[%emt 0:04:18]} 30. Kb2 {[%emt 0:08:40]} a4 {[%emt 0:00:48]} 31. Na5 {
[%emt 0:00:19]} Ba8 {[%emt 0:02:16]} 32. Ka3 {[%emt 0:01:21]} Rxc5 {[%emt 0:00:
00]} 33. Kxa4 {[%emt 0:00:28]} Rc2 {[%emt 0:00:12]} 34. g3 {[%emt 0:00:15]}
Rxa2+ {[%emt 0:00:22]} 35. Kb4 {[%emt 0:00:17]} Rf2 {[%emt 0:01:48]} 36. Kc3 {
[%emt 0:01:04]} Kf7 {[%emt 0:00:57]} 37. Nb3 {[%emt 0:00:40]} Ke6 {[%emt 0:00:
00]} 38. Nc5+ {[%emt 0:02:19]} Kf5 {[%emt 0:00:27]} 39. Kd4 {[%emt 0:02:02]}
Rd2+ {[%emt 0:00:06]} 40. Kc3 {[%emt 0:00:06]} Rd1 {[%emt 0:00:45]} 41. Kc2 {
[%emt 0:32:43]} Rd6 {[%emt 0:31:23]} 42. Kc3 {[%emt 0:01:43]} Ke5 {[%emt 0:00:
00]} 43. Nb3 {[%emt 0:00:00]} Rc6+ {[%emt 0:00:00]} 44. Kd2 {[%emt 0:00:00]}
Ra6 {[%emt 0:00:00]} 45. Nc1 {[%emt 0:00:00]} Bd5 {[%emt 0:00:00]} 46. Rc3 {
[%emt 0:00:00]} Ra7 {[%emt 0:00:00]} 47. Ne2 {[%emt 0:00:00]} Rf7 {[%emt 0:00:
00]} 48. Nf4 {[%emt 0:00:00]} g5 {[%emt 0:00:00]} 49. hxg5 {[%emt 0:00:00]}
hxg5 {[%emt 0:00:00]} 50. Ne2 {[%emt 0:00:00]} Rd7 {[%emt 0:01:23]} 51. Ke3 {
[%emt 0:00:00]} Kf5 {[%emt 0:01:58]} 52. Rc5 {[%emt 0:00:00]} Kg4 {[%emt 0:00:
00]} 53. Nc3 {[%emt 0:03:18]} Bb7 {[%emt 0:00:48]} 54. Nxe4 {[%emt 0:01:57]}
Bxe4 {[%emt 0:00:47]} 55. Kxe4 {[%emt 0:00:11]} Re7+ {[%emt 0:00:13]} 56. Kd4 {
[%emt 0:01:09]} Re1 {[%emt 0:00:18]} 57. Kd3 {[%emt 0:01:00]} Rg1 {[%emt 0:00:
00]} 58. Ke2 {[%emt 0:00:13]} Rg2+ {[%emt 0:00:14]} 59. Kf1 {[%emt 0:00:09]}
Rxg3 {[%emt 0:00:28]} 60. Kf2 {[%emt 0:00:07]} Rf3+ {[%emt 0:00:14]} 61. Kg2 {
[%emt 0:00:04]} Rf4 {[%emt 0:00:25]} 62. Rc3 {[%emt 0:00:30]} Rb4 {[%emt 0:00:
00]} 63. Rg3+ {[%emt 0:00:24]} Kf4 {[%emt 0:00:29]} 64. Rf3+ {[%emt 0:00:10]}
Ke4 {[%emt 0:00:29]} 65. Rc3 {[%emt 0:01:21]} Kf4 {[%emt 0:00:54]} 66. Rf3+ {
[%emt 0:00:03]} Ke5 {[%emt 0:00:06]} 67. Kg3 {[%emt 0:00:43]} Rb1 {[%emt 0:00:
00]} 68. Kg2 {[%emt 0:00:17]} Rd1 {[%emt 0:00:48]} 69. Re3+ {[%emt 0:00:09]}
Kf5 {[%emt 0:00:20]} 70. Rf3+ {[%emt 0:00:44]} Ke4 {[%emt 0:00:17]} 71. Ra3 {
[%emt 0:00:26]} Re1 {[%emt 0:01:05]} 72. Ra5 {[%emt 0:00:22]} Kf4 {[%emt 0:00:
00]} 73. Ra4+ {[%emt 0:01:01]} Kf5 {[%emt 0:00:06]} 74. Ra5+ {[%emt 0:00:18]}
Kg4 {[%emt 0:00:06]} 75. Ra4+ {[%emt 0:00:44]} Kh5 {[%emt 0:00:03]} 76. Ra8 {
[%emt 0:00:59]} Re3 {[%emt 0:01:00]} 77. Ra5 {[%emt 0:00:50]} Rb3 {[%emt 0:00:
00]} 78. Rc5 {[%emt 0:00:16]} Kh4 {[%emt 0:00:04]} 79. Rc4+ {[%emt 0:00:57]} g4
{[%emt 0:00:27]} 80. Rc2 {[%emt 0:00:26]} Ra3 {[%emt 0:01:15]} 81. Rb2 {
[%emt 0:00:12]} Ra4 {[%emt 0:00:41]} 82. Rc2 {[%emt 0:00:21]} Kg5 {[%emt 0:00:
00]} 83. Rf2 {[%emt 0:00:19]} Rb4 {[%emt 0:00:31]} 84. Kh2 {[%emt 0:00:38]} Kh4
{[%emt 0:00:27]} 85. Kg2 {[%emt 0:00:05]} g3 {[%emt 0:00:20]} 86. Rc2 {[%emt 0:
00:00]} Kg4 {[%emt 0:00:18]} 87. Ra2 {[%emt 0:00:13]} Rb3 {[%emt 0:00:55]} 88.
Ra4+ {[%emt 0:00:13]} Kf5 {[%emt 0:00:04]} 89. Ra5+ {[%emt 0:00:47]} Ke4 {
[%emt 0:00:41]} 1/2-1/2

[Event "44th Chess Olympiad Women 2022"]
[Site "Chennai"]
[Date "2022.08.05"]
[Round "7.38"]
[White "Likando Namakau"]
[Black "Mosurovic, Milena"]
[Result "0-1"]
[WhiteElo "1544"]
[BlackElo "1452"]
[Annotator "NA"]
[PlyCount "132"]
[EventDate "2022.??.??"]
[TimeControl "60"]

1. e4 {[%emt 0:00:07]} d5 {[%emt 0:00:05]} 2. exd5 {[%emt 0:01:16]} Qxd5 {
[%emt 0:00:07]} 3. Nc3 {[%emt 0:01:26]} Qd8 {[%emt 0:00:07]} 4. Nf3 {[%emt 0:
00:00]} Nf6 {[%emt 0:00:16]} 5. Bc4 {[%emt 0:00:49]} a6 {[%emt 0:01:20]} 6. d4
{[%emt 0:02:12]} b5 {[%emt 0:01:08]} 7. Bd3 {[%emt 0:02:14]} e6 {[%emt 0:00:20]
} 8. a3 {[%emt 0:01:24]} Bb7 {[%emt 0:01:24]} 9. Be3 {[%emt 0:02:59]} Bd6 {
[%emt 0:02:30]} 10. O-O {[%emt 0:00:51]} Nbd7 {[%emt 0:00:58]} 11. Bg5 {
[%emt 0:01:39]} O-O {[%emt 0:01:01]} 12. Ne4 {[%emt 0:01:58]} Be7 {[%emt 0:00:
00]} 13. Bxf6 {[%emt 0:02:08]} Nxf6 {[%emt 0:00:36]} 14. Nxf6+ {[%emt 0:00:29]}
Bxf6 {[%emt 0:00:07]} 15. c3 {[%emt 0:00:55]} Qd7 {[%emt 0:08:51]} 16. Re1 {
[%emt 0:03:39]} Rfd8 {[%emt 0:06:53]} 17. Be4 {[%emt 0:05:35]} c5 {[%emt 0:00:
00]} 18. Qc2 {[%emt 0:03:39]} cxd4 {[%emt 0:02:33]} 19. cxd4 {[%emt 0:02:39]}
h6 {[%emt 0:05:32]} 20. Rad1 {[%emt 0:07:35]} Rac8 {[%emt 0:02:57]} 21. Qe2 {
[%emt 0:00:45]} Bxe4 {[%emt 0:02:04]} 22. Qxe4 {[%emt 0:00:44]} Rc4 {[%emt 0:
00:00]} 23. b3 {[%emt 0:01:16]} Rc3 {[%emt 0:06:44]} 24. Re3 {[%emt 0:01:45]}
Qc7 {[%emt 0:01:27]} 25. h3 {[%emt 0:01:51]} Rc1 {[%emt 0:03:02]} 26. Ree1 {
[%emt 0:02:21]} Rxd1 {[%emt 0:01:40]} 27. Rxd1 {[%emt 0:00:33]} Qc3 {[%emt 0:
00:00]} 28. Qd3 {[%emt 0:00:59]} Qxd3 {[%emt 0:01:34]} 29. Rxd3 {[%emt 0:00:34]
} e5 {[%emt 0:00:24]} 30. Ne1 {[%emt 0:01:43]} exd4 {[%emt 0:02:56]} 31. Kf1 {
[%emt 0:01:10]} Kf8 {[%emt 0:00:21]} 32. Ke2 {[%emt 0:00:21]} Ke7 {[%emt 0:00:
00]} 33. Nf3 {[%emt 0:00:50]} Ke6 {[%emt 0:02:00]} 34. Nd2 {[%emt 0:01:35]} Kd5
{[%emt 0:02:05]} 35. f3 {[%emt 0:00:16]} Bh4 {[%emt 0:03:58]} 36. f4 {[%emt 0:
00:00]} Re8+ {[%emt 0:04:23]} 37. Kf3 {[%emt 0:04:54]} Be1 {[%emt 0:01:49]} 38.
Nf1 {[%emt 0:03:12]} Rc8 {[%emt 0:02:08]} 39. Ne3+ {[%emt 0:04:03]} Ke6 {
[%emt 0:04:45]} 40. Rxd4 {[%emt 0:02:16]} Rc3 {[%emt 0:00:20]} 41. Rd1 {
[%emt 0:31:37]} Bh4 {[%emt 0:33:13]} 42. Rb1 {[%emt 0:01:43]} Be7 {[%emt 0:00:
00]} 43. Ke4 {[%emt 0:04:17]} Bxa3 {[%emt 0:03:13]} 44. f5+ {[%emt 0:06:53]}
Kd6 {[%emt 0:02:19]} 45. Rd1+ {[%emt 0:06:39]} Kc6 {[%emt 0:02:22]} 46. Rb1 {
[%emt 0:03:11]} Kc5 {[%emt 0:02:12]} 47. Nd5 {[%emt 0:03:39]} Rc2 {[%emt 0:00:
00]} 48. b4+ {[%emt 0:01:56]} Kc6 {[%emt 0:04:43]} 49. Ne3 {[%emt 0:03:07]} Rb2
{[%emt 0:00:00]} 50. Ra1 {[%emt 0:00:00]} Rxb4+ {[%emt 0:00:00]} 51. Kd3 {
[%emt 0:00:00]} Rb3+ {[%emt 0:00:00]} 52. Ke4 {[%emt 0:00:00]} Bc5 {[%emt 0:00:
00]} 53. Nc2 {[%emt 0:00:00]} Kb6 {[%emt 0:00:00]} 54. Rd1 {[%emt 0:00:00]} Rg3
{[%emt 0:00:00]} 55. Rd2 {[%emt 0:00:00]} a5 {[%emt 0:00:00]} 56. Kf4 {[%emt 0:
00:00]} Rc3 {[%emt 0:00:00]} 57. Ke4 {[%emt 0:00:00]} a4 {[%emt 0:00:00]} 58.
Na1 {[%emt 0:00:00]} Be7 {[%emt 0:00:00]} 59. Rd7 {[%emt 0:00:00]} Bf6 {
[%emt 0:00:00]} 60. Rd1 {[%emt 0:00:00]} Rc4+ {[%emt 0:00:00]} 61. Ke3 {
[%emt 0:00:00]} Bxa1 {[%emt 0:00:00]} 62. Rxa1 {[%emt 0:00:00]} Ka5 {[%emt 0:
00:00]} 63. Rd1 {[%emt 0:00:11]} Rc7 {[%emt 0:00:00]} 64. Ra1 {[%emt 0:01:03]}
b4 {[%emt 0:00:00]} 65. g4 {[%emt 0:01:12]} b3 {[%emt 0:00:00]} 66. h4 {
[%emt 0:00:23]} b2 {[%emt 0:00:00]} 0-1